bitfinex/quotes_ETHUSD_20230701
["timestamp","ask_amount","ask_price","bid_price","bid_amount"]
[1688192260503,13.10834184,1919.3,1919.2,11.606]
[1688192260699,16.10834184,1919.3,1919.2,11.606]
[1688192261503,13.10834184,1919.3,1919.2,11.606]
[1688192262234,13.58834184,1919.3,1919.2,11.606]
[1688192262630,0.41777037,1919.5,1919.2,12.963]
[1688192262805,8.37752184,1919.4,1919.2,18.1735]
[1688192265947,13.58759184,1919.4,1919.2,18.1735]
[1688192266105,8.37752184,1919.4,1919.2,18.1735]
[1688192267214,3.16752184,1919.4,1919.2,18.1735]
[1688192268536,8.37749184,1919.4,1919.2,18.1735]
[1688192270547,7.73827013,1919.6,1919.2,18.1735]
[1688192270548,5.13353013,1919.6,1919.3,1.363]
[1688192270762,17.82073184,1919.6,1919.4,16.81496]
[1688192270943,16.10673184,1919.6,1919.4,16.81496]
[1688192271533,16.10673184,1919.6,1919.5,0.00313711]
[1688192271717,18.49883544,1919.6,1919.5,0.00313711]
[1688192273256,21.10353544,1919.6,1919.5,0.00313711]
[1688192273613,21.10353544,1919.6,1919.4,11.605]
[1688192273849,16.19174184,1919.5,1919.4,11.605]
[1688192274756,16.19174184,1919.5,1919.4,11.60843366]
[1688192275348,18.30212638,1919.5,1919.4,11.60843366]
[1688192275817,15.69728638,1919.5,1919.4,11.60843366]
[1688192277818,5.60482,1919.6,1919.4,11.60843366]
[1688192277819,3.0,1919.6,1919.4,11.60843366]
[1688192278053,3.0,1919.8,1919.4,11.60843366]
[1688192278218,7.89639184,1919.8,1919.4,24.63333366]
[1688192278423,7.89639184,1919.8,1919.6,5.20941]
[1688192278652,2.68752184,1919.8,1919.7,11.603]
[1688192278852,7.89639184,1919.8,1919.7,11.603]
[1688192279322,7.89639184,1919.8,1919.7,16.81214]
[1688192279323,3.16752184,1919.8,1919.7,16.81214]
[1688192279524,3.77693496,1920.1,1919.7,22.02467248]
[1688192279525,6.250955,1920.1,1919.7,22.02467248]
[1688192279821,5.20793,1920.2,1919.7,27.22817773]
[1688192280050,5.20808,1920.1,1919.7,27.22817773]
[1688192280231,5.20808,1920.1,1919.7,28.58817773]
[1688192280438,13.10342184,1920.2,1919.7,28.58817773]
[1688192282054,2.68752184,1920.1,1919.7,24.62360773]
[1688192282260,5.20838,1920.0,1919.7,19.41446773]
[1688192284246,5.20838,1920.0,1919.7,14.20532773]
[1688192284667,10.41676,1920.0,1919.7,14.20532773]
[1688192286561,10.41676,1920.0,1919.7,19.41442773]
[1688192286727,10.41676,1920.0,1919.8,1.94144277]
[1688192286936,10.41676,1920.0,1919.9,11.602]
[1688192287527,10.41676,1920.0,1919.9,11.60536978]
[1688192288356,5.20838,1920.0,1919.9,11.60536978]
[1688192290975,5.20838,1920.0,1919.9,16.81396978]
[1688192291942,13.10396184,1920.1,1919.9,16.81396978]
[1688192292553,7.89572184,1920.1,1919.9,16.81396978]
[1688192293996,13.10394184,1920.1,1919.9,16.81396978]
[1688192294888,2.68752184,1920.1,1919.9,16.81396978]
[1688192295041,7.89561184,1920.1,1919.9,16.81396978]
[1688192295986,13.10370184,1920.1,1919.9,16.81396978]
[1688192298179,13.10370184,1920.1,1919.9,11.60536978]
[1688192299289,15.70773184,1920.1,1919.9,11.60536978]
[1688192301154,17.48641853,1920.1,1919.9,11.60536978]
[1688192302788,15.65773184,1920.1,1919.9,11.60536978]
[1688192308587,0.48,1920.0,1919.9,11.60536978]
[1688192308782,16.18834184,1920.0,1919.9,11.60536978]
[1688192311499,25.75967184,1920.0,1919.9,0.00336978]
[1688192311807,24.06114184,1920.0,1919.3,5.21013]
[1688192311969,13.02272,1919.8,1919.3,6.465315]
[1688192312183,3.16752184,1919.7,1919.3,6.465315]
[1688192312372,10.41894,1919.6,1919.3,11.675545]
[1688192312566,5.20947,1919.6,1919.4,0.00342654]
[1688192313276,10.41894,1919.6,1919.4,0.00342654]
[1688192316784,10.41894,1919.6,1919.4,6.38281679]
[1688192318005,10.41894,1919.6,1919.4,5.21326654]
[1688192319070,10.41894,1919.6,1919.4,0.00342654]
[1688192319810,2.68752184,1919.5,1919.4,0.00342654]
[1688192320013,16.19174184,1919.5,1919.4,0.00342654]
[1688192320580,16.19174184,1919.5,1919.2,1.8733]
[1688192320797,16.19174184,1919.5,1919.2,7.08376]
[1688192321603,16.19174184,1919.5,1919.3,0.00343789]
[1688192323513,13.58690184,1919.5,1919.3,5.21364789]
[1688192328855,7.28838941,1919.8,1919.3,11.65526186]
[1688192329060,3.16752184,1919.7,1919.3,11.65526186]
[1688192329340,3.16752184,1919.7,1919.3,14.26037186]
[1688192330312,8.37671184,1919.7,1919.3,14.26037186]
[1688192336712,10.29071829,1919.9,1919.3,15.61337186]
[1688192336916,8.37645184,1919.8,1919.5,5.20963]
[1688192337549,5.20888,1919.8,1919.6,0.00340383]
[1688192337729,5.63069829,1919.9,1919.6,10.42192383]
[1688192338055,5.20843,1920.0,1919.8,5.20874]
[1688192338241,7.89595184,1920.0,1919.8,5.20874]
[1688192338439,7.89595184,1920.0,1919.8,6.56874]
[1688192340052,7.89595184,1920.0,1919.8,5.20874]
[1688192341624,7.89595184,1920.0,1919.9,0.00336978]
[1688192342431,6.9463,1920.1,1919.9,0.00336978]
[1688192342432,10.41646,1920.1,1919.9,0.00336978]
[1688192342633,7.89572184,1920.1,1919.8,10.41742]
[1688192342838,5.20833,1920.0,1919.8,5.20868]
[1688192343623,5.20833,1920.0,1919.9,0.00336978]
[1688192343823,10.41666,1920.0,1919.9,0.00336978]
[1688192344761,10.41666,1920.0,1919.7,13.67167751]
[1688192344927,10.41666,1920.0,1919.7,12.31467751]
[1688192345529,10.41666,1920.0,1919.8,0.00338113]
[1688192347062,10.41666,1920.0,1919.8,5.21221113]
[1688192347260,2.68752184,1919.9,1919.8,5.21221113]
[1688192347450,16.58472184,1919.9,1919.8,0.00338113]
[1688192347649,22.82412184,1919.9,1919.8,0.00338113]
[1688192348568,22.82412184,1919.9,1919.5,5.20967]
[1688192348755,0.48,1919.8,1919.5,5.20967]
[1688192348951,13.10580184,1919.7,1919.5,5.20967]
[1688192349360,13.10580184,1919.7,1919.4,10.41958]
[1688192350234,13.10580184,1919.7,1919.4,5.20978]
[1688192350650,13.10580184,1919.7,1919.5,0.00341715]
[1688192352476,15.71037184,1919.7,1919.5,0.00341715]
[1688192354590,15.71037184,1919.7,1919.3,11.78965094]
[1688192354791,15.71037184,1919.7,1919.3,12.21475803]
[1688192355594,15.71037184,1919.7,1919.4,0.0034285]
[1688192356680,17.39787184,1919.7,1919.4,0.0034285]
[1688192359488,17.39787184,1919.7,1919.4,5.2133785]
[1688192372720,1.7206,1920.0,1919.4,5.2133785]
[1688192372922,7.89626184,1919.9,1919.5,1.88433785]
[1688192373219,13.10498184,1919.9,1919.6,10.41865]
[1688192373717,13.10498184,1919.9,1919.7,0.0033984]
[1688192373919,13.10498184,1919.9,1919.7,5.2125084]
[1688192377330,13.10152432,1919.9,1919.7,5.2125084]
[1688192378334,13.10152432,1919.9,1919.7,0.0033984]
[1688192378723,13.10152432,1919.9,1919.6,5.20928]
[1688192379608,13.10152432,1919.9,1919.7,0.0033984]
[1688192380801,13.10152432,1919.9,1919.6,10.41858]
[1688192381758,13.10152432,1919.9,1919.7,0.00340078]
[1688192382522,10.41746,1919.9,1919.7,5.21253078]
[1688192382729,5.20862,1919.9,1919.7,11.46045108]
[1688192383258,5.20862,1919.9,1919.7,6.25131108]
[1688192383467,5.20862,1919.9,1919.7,5.20913]
[1688192383625,5.20862,1919.9,1919.8,0.00338943]
[1688192384939,10.41724,1919.9,1919.8,0.00338943]
[1688192388871,10.41724,1919.9,1919.6,5.20928]
[1688192389736,10.41724,1919.9,1919.7,0.00340078]
[1688192390274,13.10476184,1919.9,1919.7,0.00340078]
[1688192390571,17.19159802,1919.9,1919.7,0.00340078]
[1688192390771,17.19159802,1919.9,1919.5,5.22603922]
[1688192391867,17.19159802,1919.9,1919.6,0.00341451]
[1688192393276,15.70906184,1919.9,1919.6,0.00341451]
[1688192396608,2.68752184,1919.8,1919.6,0.00341451]
[1688192396841,10.41828,1919.7,1919.6,0.00341451]
[1688192398424,13.10580184,1919.7,1919.6,0.00341451]
[1688192398721,16.19037184,1919.7,1919.6,0.00341451]
[1688192406124,18.01261356,1919.7,1919.6,0.00341451]
[1688192406831,18.01261356,1919.7,1919.2,6.81379]
[1688192407155,10.41948,1919.5,1919.2,6.81379]
[1688192407360,10.41948,1919.5,1919.2,5.21049]
[1688192407361,13.10770184,1919.4,1919.2,5.21049]
[1688192407738,13.10770184,1919.4,1919.3,0.00344857]
[1688192408727,7.89750184,1919.4,1919.3,0.00344857]
[1688192409335,7.89750184,1919.4,1919.3,5.21367857]
[1688192409767,2.68752184,1919.4,1919.3,5.21367857]
[1688192409939,7.89748184,1919.4,1919.3,5.21367857]
[1688192411344,2.68752184,1919.4,1919.3,5.21367857]
[1688192413669,2.68752184,1919.4,1919.3,0.00344857]
[1688192413871,14.37717502,1919.4,1919.3,0.00344857]
[1688192414766,14.37717502,1919.4,1919.1,5.22714266]
[1688192414945,0.48,1919.3,1919.1,5.22714266]
[1688192415146,13.58838184,1919.3,1919.1,5.22714266]
[1688192415747,13.58838184,1919.3,1919.2,0.00345755]
[1688192416965,8.37795184,1919.3,1919.2,0.00345755]
[1688192424501,8.37795184,1919.3,1919.2,5.21395755]
[1688192432995,5.20956,1919.6,1919.2,15.42281057]
[1688192433183,3.42330417,1919.8,1919.2,14.07381057]
[1688192433383,5.18839524,1920.4,1919.2,17.56331057]
[1688192433384,30.53,1920.3,1919.2,17.56331057]
[1688192433584,5.2081,1920.1,1919.3,1.75633106]
[1688192433793,13.10418184,1920.0,1919.5,10.41916]
[1688192433990,15.70834184,1920.0,1919.5,10.41916]
[1688192434826,15.70834184,1920.0,1919.6,0.00325589]
[1688192437139,15.70834184,1920.0,1919.6,5.21265589]
[1688192437738,15.70834184,1920.0,1919.6,6.25487948]
[1688192442635,0.48,1919.9,1919.6,0.00325589]
[1688192442842,13.10526184,1919.8,1919.6,0.00325589]
[1688192444144,13.10526184,1919.8,1919.6,5.21264589]
[1688192445136,7.89639184,1919.8,1919.6,10.42205589]
[1688192446628,2.68752184,1919.8,1919.6,10.42205589]
[1688192447017,2.68752184,1919.8,1919.6,13.02675589]
[1688192447218,2.68752184,1919.8,1919.6,10.42205589]
[1688192448821,7.89641184,1919.8,1919.6,10.42205589]
[1688192450849,7.89641184,1919.8,1919.6,5.21264589]
[1688192453638,7.89641184,1919.8,1919.6,10.42205589]
[1688192460173,4.22155602,1919.8,1919.6,0.00325589]
[1688192460347,2.111,1919.7,1919.6,0.00325589]
[1688192460553,4.79852184,1919.7,1919.6,0.00325589]
[1688192460756,17.82137184,1919.7,1919.1,8.79234]
[1688192460961,2.68752184,1919.6,1919.2,5.21042]
[1688192461163,5.68974,1919.5,1919.2,10.42092]
[1688192461352,2.68752184,1919.4,1919.1,3.5818]
[1688192461551,13.10773184,1919.4,1919.0,5.2109]
[1688192461756,9.52862184,1919.4,1919.2,0.00330247]
[1688192462769,14.73872184,1919.4,1919.1,5.21073]
[1688192463688,14.73872184,1919.4,1919.2,0.00330247]
[1688192464046,9.52862184,1919.4,1919.2,0.00330247]
[1688192466485,9.52862184,1919.4,1919.2,5.21377247]
[1688192466788,3.0,1919.8,1919.2,6.25621072]
[1688192467083,5.20943,1919.6,1919.2,14.07196072]
[1688192467279,5.20943,1919.6,1919.3,1.353]
[1688192467578,5.20943,1919.6,1919.3,10.43663092]
[1688192467779,5.20943,1919.6,1919.4,0.00328321]
[1688192468159,10.41886,1919.6,1919.4,0.00328321]
[1688192468993,5.20943,1919.6,1919.4,5.21321321]
[1688192469288,10.41859,1919.7,1919.4,13.02815321]
[1688192469686,5.20927,1919.7,1919.4,13.02815321]
[1688192469869,5.20927,1919.7,1919.4,14.63964384]
[1688192472489,5.20927,1919.7,1919.4,12.03466384]
[1688192472861,10.41859,1919.7,1919.4,10.42317321]
[1688192477275,10.41859,1919.7,1919.4,5.21321321]
[1688192480381,2.68752184,1919.8,1919.4,0.00328321]
[1688192480578,2.68752184,1919.8,1919.4,5.21324321]
[1688192480579,10.41846,1919.7,1919.4,5.21324321]
[1688192489816,2.68752184,1919.6,1919.4,5.21324321]
[1688192490116,7.89711184,1919.6,1919.4,0.00328321]
[1688192490909,13.10670184,1919.6,1919.4,5.21320321]
[1688192494811,7.89711184,1919.6,1919.4,10.42316321]
[1688192495822,3.41224674,1919.9,1919.4,14.37714321]
[1688192495823,8.62084674,1919.9,1919.4,14.37714321]
[1688192496117,13.51711858,1919.9,1919.6,10.41872]
[1688192496696,13.51711858,1919.9,1919.7,0.00325434]
[1688192496905,13.51711858,1919.9,1919.7,5.21231434]
[1688192498099,13.51711858,1919.9,1919.7,0.00325434]
[1688192498704,13.51711858,1919.9,1919.6,10.41864]
[1688192499699,13.51711858,1919.9,1919.7,0.00325434]
[1688192500887,13.51711858,1919.9,1919.6,10.41864]
[1688192501392,13.51711858,1919.9,1919.6,5.20928]
[1688192501787,13.51711858,1919.9,1919.7,0.00325434]
[1688192502613,13.51711858,1919.9,1919.6,10.41858]
[1688192503820,13.51711858,1919.9,1919.7,0.00325434]
[1688192504737,13.51711858,1919.9,1919.6,5.20928]
[1688192505846,13.51711858,1919.9,1919.7,0.00325434]
[1688192506639,13.51711858,1919.9,1919.6,10.41859]
[1688192507011,13.51711858,1919.9,1919.6,5.20928]
[1688192507647,13.51711858,1919.9,1919.7,0.00325434]
[1688192508708,13.51711858,1919.9,1919.6,5.20928]
[1688192508922,16.12141858,1919.9,1919.6,5.20928]
[1688192509749,16.12141858,1919.9,1919.7,0.00325434]
[1688192510818,16.12141858,1919.9,1919.6,5.20928]
[1688192511716,16.12141858,1919.9,1919.7,0.00325232]
[1688192512849,16.12141858,1919.9,1919.6,5.20928]
[1688192513670,16.12141858,1919.9,1919.7,0.00325232]
[1688192514766,15.70917184,1919.9,1919.6,5.20928]
[1688192514950,15.70917184,1919.9,1919.5,8.72152]
[1688192515139,15.70917184,1919.9,1919.5,13.9311]
[1688192515339,15.70917184,1919.9,1919.5,15.58635401]
[1688192515668,15.70917184,1919.9,1919.6,0.00326396]
[1688192518455,17.32057184,1919.9,1919.6,0.00326396]
[1688192520375,17.32057184,1919.9,1919.6,5.21266396]
[1688192521838,17.32057184,1919.9,1919.6,0.00326396]
[1688192523979,17.32057184,1919.9,1919.6,5.21266396]
[1688192527884,17.32057184,1919.9,1919.6,0.00326396]
[1688192530887,17.32057184,1919.9,1919.6,5.21267396]
[1688192531285,17.32057184,1919.9,1919.6,0.00326396]
[1688192535171,17.32057184,1919.9,1919.6,5.21265396]
[1688192536784,17.32057184,1919.9,1919.6,0.00326396]
[1688192540358,19.09411693,1919.9,1919.6,0.00326396]
[1688192542487,2.68752184,1919.8,1919.6,0.00326396]
[1688192542694,5.68914,1919.7,1919.6,0.00326396]
[1688192542860,8.37666184,1919.7,1919.6,0.00326396]
[1688192543287,8.37666184,1919.7,1919.6,5.21267396]
[1688192543663,5.20877,1919.9,1919.6,10.42208396]
[1688192543987,13.10506184,1919.9,1919.6,10.42208396]
[1688192546791,13.10506184,1919.9,1919.6,10.41882]
[1688192547755,13.10506184,1919.9,1919.7,0.00324627]
[1688192548694,13.10506184,1919.9,1919.6,10.41882]
[1688192549699,13.10506184,1919.9,1919.7,0.00324828]
[1688192550695,13.10506184,1919.9,1919.6,10.41882]
[1688192551706,13.10506184,1919.9,1919.7,0.00324627]
[1688192552808,13.10506184,1919.9,1919.6,10.41882]
[1688192553697,13.10506184,1919.9,1919.7,0.00324627]
[1688192553905,13.10506184,1919.9,1919.7,5.21238627]
[1688192556898,13.10506184,1919.9,1919.7,0.00324627]
[1688192557706,13.10506184,1919.9,1919.6,10.41872]
[1688192558712,13.10506184,1919.9,1919.7,0.00324425]
[1688192559710,13.10506184,1919.9,1919.6,10.41872]
[1688192560776,13.10506184,1919.9,1919.7,0.00324627]
[1688192560980,13.10506184,1919.9,1919.7,5.21234627]
[1688192562286,13.10506184,1919.9,1919.7,0.00324627]
[1688192562687,13.10506184,1919.9,1919.6,10.41855]
[1688192563719,13.10506184,1919.9,1919.7,0.00324425]
[1688192564808,13.10506184,1919.9,1919.6,10.41855]
[1688192565712,13.10506184,1919.9,1919.7,0.0032503]
[1688192566015,14.88294593,1919.9,1919.7,0.0032503]
[1688192566721,14.88294593,1919.9,1919.6,10.41855]
[1688192566911,13.10506184,1919.9,1919.6,10.41855]
[1688192567824,13.10506184,1919.9,1919.7,0.00324627]
[1688192568726,13.10506184,1919.9,1919.6,10.41855]
[1688192569706,13.10506184,1919.9,1919.7,0.00324828]
[1688192570798,13.10506184,1919.9,1919.6,10.41855]
[1688192571500,13.10506184,1919.9,1919.6,5.20924]
[1688192571698,13.10506184,1919.9,1919.7,0.0032503]
[1688192571902,14.88294593,1919.9,1919.7,0.0032503]
[1688192572828,14.88294593,1919.9,1919.6,5.20924]
[1688192573028,13.10506184,1919.9,1919.6,5.20924]
[1688192573709,13.10506184,1919.9,1919.7,0.00324627]
[1688192574797,13.10506184,1919.9,1919.6,10.41852]
[1688192575727,13.10506184,1919.9,1919.7,0.00324425]
[1688192576704,13.10506184,1919.9,1919.6,5.20924]
[1688192577737,13.10506184,1919.9,1919.7,0.00324425]
[1688192578035,14.88294593,1919.9,1919.7,0.00324425]
[1688192578831,14.88294593,1919.9,1919.6,5.20924]
[1688192579002,13.10506184,1919.9,1919.6,5.20924]
[1688192579426,15.70936184,1919.9,1919.6,5.20924]
[1688192579934,15.70936184,1919.9,1919.7,0.00324828]
[1688192580704,15.70936184,1919.9,1919.6,5.20924]
[1688192580935,15.70936184,1919.9,1919.6,10.41852]
[1688192581737,15.70936184,1919.9,1919.7,0.00324425]
[1688192581903,17.48724593,1919.9,1919.7,0.00324425]
[1688192582934,17.48724593,1919.9,1919.6,5.20924]
[1688192583131,15.70936184,1919.9,1919.6,5.20924]
[1688192583742,15.70936184,1919.9,1919.7,0.00324627]
[1688192584710,15.70936184,1919.9,1919.6,5.20924]
[1688192585731,13.10506184,1919.9,1919.7,0.00324425]
[1688192585921,13.10506184,1919.9,1919.7,5.21237425]
[1688192596426,2.68752184,1919.8,1919.7,0.00324425]
[1688192596628,16.18969184,1919.8,1919.7,0.00324425]
[1688192596862,17.87009184,1919.8,1919.1,1.5236]
[1688192597160,13.02407,1919.6,1919.1,1.5236]
[1688192597460,5.21001,1919.4,1919.1,6.73427]
[1688192597634,2.68752184,1919.4,1919.1,5.21067]
[1688192597831,7.89766184,1919.4,1919.2,0.00329642]
[1688192598032,7.89766184,1919.4,1919.2,5.21367642]
[1688192601341,2.68752184,1919.4,1919.2,5.21367642]
[1688192601541,7.89759184,1919.4,1919.2,5.21367642]
[1688192605233,7.89759184,1919.4,1919.2,0.00329642]
[1688192606039,2.68752184,1919.3,1919.2,0.00329642]
[1688192606272,4.79442184,1919.3,1919.2,0.00329642]
[1688192606863,17.81999184,1919.3,1918.8,13.81534]
[1688192607122,0.48,1919.2,1918.8,13.81534]
[1688192607275,5.21083,1919.1,1918.8,13.81534]
[1688192607794,8.37816184,1919.2,1918.9,0.00332329]
[1688192608093,5.21079,1919.1,1918.9,0.00332329]
[1688192608293,14.84991902,1919.2,1918.9,5.21461329]
[1688192608774,9.63917902,1919.2,1918.9,5.21461329]
[1688192608985,9.63917902,1919.2,1918.9,10.42592329]
[1688192609648,14.84985902,1919.2,1918.9,10.42592329]
[1688192609883,14.84985902,1919.2,1918.9,5.21461329]
[1688192610574,14.84985902,1919.2,1918.9,10.42592329]
[1688192610946,14.84985902,1919.2,1918.9,5.21461329]
[1688192611491,14.84985902,1919.2,1918.9,0.00332329]
[1688192612149,14.84985902,1919.2,1918.9,5.21462329]
[1688192613088,13.58884184,1919.2,1918.9,5.21462329]
[1688192613658,13.58884184,1919.2,1918.9,0.00332329]
[1688192617659,13.58884184,1919.2,1918.9,5.21461329]
[1688192618062,13.58884184,1919.2,1918.9,0.00332329]
[1688192618864,16.19409184,1919.2,1918.9,0.00332329]
[1688192619197,17.97619102,1919.2,1918.9,0.00332329]
[1688192619370,18.3837514,1919.2,1918.9,0.00332329]
[1688192621378,16.60165222,1919.2,1918.9,0.00332329]
[1688192624905,2.68752184,1919.1,1918.9,0.00332329]
[1688192625200,10.42208,1919.0,1918.9,0.00332329]
[1688192627415,2.68752184,1919.1,1918.9,0.00332329]
[1688192627613,7.89838184,1919.1,1918.9,5.21463329]
[1688192628481,7.89838184,1919.1,1918.9,10.42594329]
[1688192629805,7.89838184,1919.1,1918.9,5.21463329]
[1688192630108,13.10924184,1919.1,1918.9,5.21463329]
[1688192630710,7.89838184,1919.1,1918.9,5.21463329]
[1688192633002,10.9014,1919.2,1918.9,10.42594329]
[1688192633176,13.58892184,1919.2,1918.9,10.42594329]
[1688192648101,0.40801412,1919.3,1918.9,10.42594329]
[1688192648446,5.21007,1919.4,1918.9,15.82706662]
[1688192648627,5.21025,1919.3,1918.9,15.82706662]
[1688192649724,10.4205,1919.3,1918.9,15.82706662]
[1688192659159,5.21025,1919.3,1919.0,1.349]
[1688192659327,0.41193693,1919.6,1919.1,1.357]
[1688192659520,3.09945877,1919.6,1919.1,1.357]
[1688192659741,5.2099,1919.5,1919.2,0.00329843]
[1688192660069,10.41984,1919.5,1919.3,5.21019]
[1688192660276,12.14374,1919.5,1919.3,5.21019]
[1688192660832,10.41984,1919.5,1919.4,0.00327716]
[1688192661734,10.41984,1919.5,1919.2,10.4208]
[1688192663835,10.41984,1919.5,1919.3,0.00328275]
[1688192677908,10.41984,1919.5,1919.2,5.21042]
[1688192678886,10.41984,1919.5,1919.3,0.00328275]
[1688192679713,13.10736184,1919.5,1919.3,0.00328275]
[1688192680419,4.20101,1919.6,1919.3,0.00328275]
[1688192680420,1.5962,1919.6,1919.3,0.00328275]
[1688192680622,9.49322184,1919.6,1919.3,10.42364275]
[1688192680799,9.49322184,1919.6,1919.3,10.42036]
[1688192681794,9.49322184,1919.6,1919.4,0.00327313]
[1688192682017,9.49322184,1919.6,1919.4,5.21316313]
[1688192682622,7.89702184,1919.6,1919.4,5.21316313]
[1688192684428,13.10652184,1919.6,1919.4,5.21316313]
[1688192684723,13.10652184,1919.6,1919.4,0.00327313]
[1688192687208,3.16752184,1919.5,1919.4,0.00327313]
[1688192687407,13.58690184,1919.5,1919.4,0.00327313]
[1688192689132,8.37721184,1919.5,1919.4,0.00327313]
[1688192693662,13.58690184,1919.5,1919.4,0.00327313]
[1688192693852,13.58690184,1919.5,1919.2,5.21041]
[1688192694056,13.58690184,1919.5,1919.2,10.42082]
[1688192694756,13.58690184,1919.5,1919.3,0.00328275]
[1688192700272,13.58690184,1919.5,1919.3,5.21349275]
[1688192700473,8.37721184,1919.5,1919.3,5.21349275]
[1688192702874,13.58690184,1919.5,1919.3,5.21349275]
[1688192704175,8.37721184,1919.5,1919.3,5.21349275]
[1688192704657,13.58690184,1919.5,1919.3,5.21349275]
[1688192704873,15.20606302,1919.5,1919.3,0.00328275]
[1688192705761,9.99637302,1919.5,1919.3,0.00328275]
[1688192706777,9.99637302,1919.5,1919.3,5.21345275]
[1688192707742,15.20606302,1919.5,1919.3,5.21345275]
[1688192707957,15.20606302,1919.5,1919.3,0.00328275]
[1688192708281,1.5206063,1919.4,1919.3,0.00328275]
[1688192708450,8.37748184,1919.4,1919.3,0.00328275]
[1688192708851,13.58744184,1919.4,1919.3,0.00328275]
[1688192710682,8.37748184,1919.4,1919.3,0.00328275]
[1688192711895,8.37748184,1919.4,1919.3,5.21351275]
[1688192714866,13.58744184,1919.4,1919.3,0.00328275]
[1688192715175,15.11723002,1919.4,1919.3,0.00328275]
[1688192715997,15.11723002,1919.4,1919.0,5.211]
[1688192716200,3.16752184,1919.3,1919.1,5.21076]
[1688192716566,8.37778184,1919.3,1919.0,5.211]
[1688192716792,8.37778184,1919.3,1919.2,0.00329036]
[1688192716996,9.88953484,1919.3,1919.2,0.00329036]
[1688192717591,4.67927484,1919.3,1919.2,0.00329036]
[1688192717778,3.16752184,1919.3,1919.2,0.00329036]
[1688192718190,8.37775184,1919.3,1919.2,0.00329036]
[1688192719203,13.58798184,1919.3,1919.2,0.00329036]
[1688192719508,8.37775184,1919.3,1919.2,0.00329036]
[1688192720209,2.68752184,1919.3,1919.2,0.00329036]
[1688192720415,2.68752184,1919.3,1919.2,10.42429036]
[1688192721780,2.68752184,1919.3,1919.2,10.421]
[1688192722886,2.68752184,1919.3,1919.2,10.42428835]
[1688192726007,2.68752184,1919.3,1919.2,5.21378835]
[1688192726195,7.89775184,1919.3,1919.2,5.21378835]
[1688192727394,7.89775184,1919.3,1919.2,0.00328835]
[1688192757941,17.67565902,1919.3,1919.2,0.00328835]
[1688192758881,17.67565902,1919.3,1919.0,5.21089]
[1688192759043,5.21077,1919.1,1919.0,5.21089]
[1688192759976,5.21077,1919.1,1919.0,5.21420164]
[1688192760141,5.21057,1919.2,1919.0,5.21420164]
[1688192760342,7.89809184,1919.2,1919.0,5.21420164]
[1688192762571,2.68752184,1919.1,1919.0,5.21420164]
[1688192762773,13.10906184,1919.1,1919.0,0.00331164]
[1688192762980,14.68049302,1919.1,1919.0,0.00331164]
[1688192763275,17.76587302,1919.1,1919.0,0.00331164]
[1688192763476,19.35357302,1919.1,1919.0,0.00331164]
[1688192763977,19.35357302,1919.1,1918.6,2.013]
[1688192764163,13.02841,1918.9,1918.6,2.013]
[1688192764351,13.02841,1918.9,1918.6,0.1]
[1688192764943,13.02841,1918.9,1918.7,0.00334054]
[1688192766082,13.02841,1918.9,1918.6,0.1]
[1688192766382,10.42274,1918.9,1918.6,0.1]
[1688192766749,10.42274,1918.9,1918.7,0.00334054]
[1688192767495,13.11026184,1918.9,1918.7,0.00334054]
[1688192767702,17.49426402,1918.9,1918.7,0.00334054]
[1688192767870,14.88861402,1918.9,1918.6,5.31211]
[1688192768184,9.67724402,1918.9,1918.6,5.31211]
[1688192768348,9.67724402,1918.9,1918.6,10.52424]
[1688192768699,7.89889184,1918.9,1918.6,10.52424]
[1688192768985,13.11026184,1918.9,1918.7,0.00334054]
[1688192769783,13.11026184,1918.9,1918.6,10.52414]
[1688192770796,13.11026184,1918.9,1918.7,0.00333852]
[1688192771814,13.11026184,1918.9,1918.6,10.52414]
[1688192771965,13.11026184,1918.9,1918.6,5.31203]
[1688192772812,13.11026184,1918.9,1918.7,0.0033365]
[1688192773805,13.11026184,1918.9,1918.6,5.31201]
[1688192774787,13.11026184,1918.9,1918.7,0.0033365]
[1688192774990,13.11026184,1918.9,1918.7,5.2151765]
[1688192785039,3.0,1919.3,1918.7,6.26789515]
[1688192785238,30.03,1919.4,1918.7,14.08568515]
[1688192785445,30.03,1919.4,1919.0,1.357]
[1688192785446,32.71752184,1919.4,1919.0,1.357]
[1688192785643,5.3418128,1919.6,1919.1,10.4211]
[1688192785644,8.8942928,1919.6,1919.1,10.4211]
[1688192785836,2.68752184,1919.5,1919.1,10.42413752]
[1688192786009,7.89736184,1919.5,1919.1,13.02951752]
[1688192786213,2.68752184,1919.5,1919.1,14.39251752]
[1688192786543,7.89731184,1919.5,1919.1,14.39251752]
[1688192790451,2.68752184,1919.5,1919.1,14.39251752]
[1688192790739,2.68752184,1919.5,1919.1,16.25807127]
[1688192791446,7.89737184,1919.5,1919.1,10.42413752]
[1688192792112,15.71206184,1919.5,1919.1,10.42413752]
[1688192792313,0.48,1919.4,1919.1,10.42413752]
[1688192792535,2.68752184,1919.3,1919.1,10.42413752]
[1688192796414,5.69,1919.4,1919.1,10.42413752]
[1688192796620,2.68752184,1919.4,1919.1,13.02951752]
[1688192798049,7.89748184,1919.4,1919.1,10.42413752]
[1688192815069,7.89748184,1919.4,1919.1,13.02951752]
[1688192815258,7.89748184,1919.4,1919.1,14.69100927]
[1688192817680,7.89748184,1919.4,1919.1,13.02951752]
[1688192841792,7.89748184,1919.4,1919.1,10.42413752]
[1688192841993,8.37786184,1919.3,1919.1,5.21358752]
[1688192843992,8.37786184,1919.3,1919.1,10.42435752]
[1688192846286,7.89786184,1919.3,1919.1,10.42435752]
[1688192852092,7.89786184,1919.3,1919.1,5.21358752]
[1688192852279,7.89786184,1919.3,1919.1,0.00303752]
[1688192858406,7.89786184,1919.3,1919.1,10.42451752]
[1688192859707,7.89786184,1919.3,1919.1,5.21374752]
[1688192859908,0.48,1919.2,1919.1,0.00303752]
[1688192860081,8.37802184,1919.2,1919.1,0.00303752]
[1688192861208,16.19377184,1919.2,1919.1,0.00303752]
[1688192861374,18.22113924,1919.2,1919.1,0.00303752]
[1688192861974,19.88823924,1919.2,1918.7,5.21167]
[1688192862311,2.68752184,1919.1,1918.7,5.21178]
[1688192862612,10.4222,1919.0,1918.7,5.21178]
[1688192862992,10.4222,1919.0,1918.8,0.00306641]
[1688192863608,5.2111,1919.0,1918.8,0.00306641]
[1688192864384,13.10938184,1919.1,1918.8,0.00306641]
[1688192864584,13.10938184,1919.1,1918.8,5.21462641]
[1688192865115,15.29625476,1919.1,1918.8,5.21462641]
[1688192865514,15.29625476,1919.1,1918.8,10.42621641]
[1688192866406,13.10938184,1919.1,1918.8,10.42621641]
[1688192867483,7.89843184,1919.1,1918.8,10.42621641]